bitfinex-derivatives/quotes_BTCF0:USTF0_20260127
["timestamp","ask_amount","ask_price","bid_price","bid_amount"]
[1769505079171,0.11450772,88110.0,88094.0,0.011366]
[1769505079584,0.11450772,88108.0,88094.0,0.011366]
[1769505081459,0.11450772,88108.0,88086.0,0.01135248]
[1769505082266,0.11450772,88108.0,88088.0,0.011367]
[1769505083172,0.12587272,88108.0,88090.0,0.011367]
[1769505083766,0.11450772,88108.0,88090.0,0.011367]
[1769505086879,0.11450772,88108.0,88092.0,0.011366]
[1769505087476,0.11470508,88106.0,88092.0,0.011366]
[1769505087875,0.11470508,88106.0,88094.0,0.011366]
[1769505088176,0.11470508,88106.0,88096.0,0.011366]
[1769505088675,0.11470508,88106.0,88098.0,0.011366]
[1769505088981,0.11470508,88106.0,88094.0,0.011366]
[1769505090680,0.10228,88105.0,88094.0,0.011366]
[1769505091180,0.11470508,88104.0,88086.0,0.12201638]
[1769505091375,0.11470508,88104.0,88094.0,0.011366]
[1769505091688,0.11470508,88104.0,88086.0,0.12201638]
[1769505091974,0.11470508,88104.0,88086.0,0.01135248]
[1769505092376,0.11470508,88099.0,88083.0,0.011368]
[1769505092574,0.011366,88096.0,88073.0,0.1186119]
[1769505092778,0.11470508,88094.0,88073.0,0.1186119]
[1769505093779,0.11470508,88094.0,88077.0,0.011369]
[1769505093978,0.11470508,88092.0,88076.0,0.011369]
[1769505094570,0.55192,88091.0,88076.0,0.011369]
[1769505094770,0.11470508,88089.0,88079.0,0.011368]
[1769505095073,0.11470508,88089.0,88082.0,0.011368]
[1769505095565,0.11470508,88089.0,88074.0,0.1106639]
[1769505096172,8e-08,88089.0,88082.0,0.011368]
[1769505096774,8e-08,88089.0,88078.0,0.011368]
[1769505096964,8e-08,88090.0,88084.0,0.011368]
[1769505097169,0.011364,88115.0,88093.0,0.011366]
[1769505097370,0.4016,88114.0,88096.0,0.011366]
[1769505097571,0.51512606,88114.0,88092.0,0.1220299]
[1769505097973,0.011364,88112.0,88092.0,0.011366]
[1769505098182,0.011364,88110.0,88088.0,0.011367]
[1769505098370,0.011365,88106.0,88088.0,0.011367]
[1769505098770,0.011365,88103.0,88083.0,0.011368]
[1769505098976,0.4016,88102.0,88083.0,0.011368]
[1769505099186,0.11470508,88101.0,88083.0,0.011368]
[1769505099481,0.11470508,88099.0,88079.0,0.011368]
[1769505099680,0.11470508,88099.0,88082.0,0.011368]
[1769505104587,0.11470508,88099.0,88084.0,0.011368]
[1769505104787,0.11470508,88099.0,88086.0,0.011367]
[1769505105183,0.11470508,88099.0,88083.0,0.1106639]
[1769505105375,0.65452,88098.0,88089.0,0.011367]
[1769505105783,0.65456,88097.0,88092.0,0.011367]
[1769505105977,0.65456,88096.0,88092.0,0.011367]
[1769505106488,0.65456,88096.0,88089.0,0.011367]
[1769505108489,0.65456,88096.0,88086.0,0.011367]
[1769505109884,0.11470508,88097.0,88088.0,0.011367]
[1769505110084,0.6558,88096.0,88088.0,0.011367]
[1769505112795,0.6558,88096.0,88087.0,0.011367]
[1769505113296,0.6558,88096.0,88085.0,0.1106639]
[1769505113694,0.11470508,88095.0,88084.0,0.011368]
[1769505114800,0.11470508,88095.0,88081.0,0.011368]
[1769505117404,0.11470508,88095.0,88083.0,0.011368]
[1769505118796,0.11470508,88095.0,88085.0,0.011367]
[1769505120996,0.011365,88107.0,88083.0,0.10992027]
[1769505121300,0.65928,88106.0,88083.0,0.10992027]
[1769505122501,0.65928,88106.0,88088.0,0.011367]
[1769505123002,0.03866172,88105.0,88088.0,0.011367]
[1769505123204,0.03866172,88105.0,88090.0,0.011367]
[1769505125400,0.03795663,88103.0,88090.0,0.011367]
[1769505126199,0.03795663,88103.0,88090.0,0.10992027]
[1769505126502,0.65268855,88102.0,88091.0,0.011367]
[1769505126705,0.29936,88101.0,88091.0,0.011367]
[1769505127004,0.29936,88101.0,88093.0,0.011366]
[1769505128195,0.51268,88101.0,88095.0,0.011366]
[1769505128394,0.61798571,88101.0,88095.0,0.011366]
[1769505128807,0.00302571,88100.0,88095.0,0.011366]
[1769505129405,7.1e-07,88100.0,88095.0,0.011366]
[1769505129802,0.66052,88101.0,88095.0,0.011366]
[1769505130406,0.053037,88101.0,88095.0,0.011366]
[1769505130705,0.55836,88102.0,88095.0,0.011366]
[1769505131595,0.00187941,88101.0,88095.0,0.011366]
[1769505133010,6.566e-05,88111.0,88102.0,0.011365]
[1769505133306,0.28289104,88115.0,88106.0,0.011365]
[1769505133506,0.29936,88117.0,88106.0,0.011365]
[1769505134008,0.10228,88122.0,88108.0,0.011364]
[1769505134209,0.011362,88130.0,88110.0,0.011364]
[1769505134408,0.29936,88124.0,88110.0,0.011364]
[1769505134908,0.00041769,88123.0,88110.0,0.011364]
[1769505135711,0.00041769,88123.0,88110.0,0.13122476]
[1769505136905,0.00041769,88123.0,88110.0,0.11986076]
[1769505140516,0.011362,88127.0,88110.0,0.11986076]
[1769505140517,0.01292978,88127.0,88110.0,0.11986076]
[1769505140715,0.00156778,88126.0,88110.0,0.11986076]
[1769505141208,0.00156778,88126.0,88114.0,0.011364]
[1769505142311,0.00156778,88126.0,88116.0,0.011363]
[1769505143812,0.00156778,88126.0,88114.0,0.011364]
[1769505144415,0.00186164,88132.0,88115.0,0.11937945]
[1769505144912,0.00183583,88131.0,88115.0,0.11937945]
[1769505145618,0.00183583,88129.0,88115.0,0.11937945]
[1769505146318,0.00183583,88129.0,88116.0,0.11938805]
[1769505146521,0.00197234,88136.0,88116.0,0.11938805]
[1769505147112,0.00197234,88136.0,88118.0,0.11934255]
[1769505147415,0.00197234,88136.0,88121.0,0.011363]
[1769505147720,0.00197234,88135.0,88118.0,0.13070555]
[1769505148020,0.00197234,88133.0,88118.0,0.11934255]
[1769505148321,0.00197234,88131.0,88115.0,0.011364]
[1769505149213,0.01836902,88129.0,88114.0,0.11934255]
[1769505149613,0.011362,88128.0,88114.0,0.11934255]
[1769505149813,0.01836902,88129.0,88114.0,0.11934255]
[1769505151624,0.011362,88128.0,88114.0,0.11934255]
[1769505152317,0.03362667,88128.0,88114.0,0.11934255]
[1769505152513,0.011362,88132.0,88114.0,0.11934255]
[1769505152714,0.011362,88130.0,88114.0,0.11934255]
[1769505152919,0.011362,88130.0,88114.0,0.13070655]
[1769505153222,0.0410478,88130.0,88114.0,0.13070655]
[1769505153422,0.0410478,88130.0,88114.0,0.11934255]
[1769505153622,0.011362,88128.0,88114.0,0.11934255]
[1769505154711,0.0296858,88130.0,88114.0,0.11934255]
[1769505155119,0.011362,88129.0,88114.0,0.11934255]
[1769505155716,0.0296858,88130.0,88114.0,0.11934255]
[1769505156516,0.0296858,88130.0,88116.0,0.11922131]
[1769505159528,0.011362,88129.0,88116.0,0.11922131]
[1769505160322,0.011362,88129.0,88116.0,0.0307175]
[1769505162822,0.17607213,88130.0,88116.0,0.0307175]
[1769505162823,0.011362,88127.0,88116.0,0.0307175]
[1769505165631,0.18743413,88130.0,88116.0,0.0307175]
[1769505168437,0.011362,88127.0,88116.0,0.0307175]
[1769505168635,0.11142245,88125.0,88106.0,0.10228]
[1769505168840,0.011363,88118.0,88106.0,0.10228]
[1769505169438,0.12278645,88115.0,88101.0,0.10228]
[1769505169635,0.14638633,88112.0,88101.0,0.10228]
[1769505170033,0.12278645,88115.0,88101.0,0.10228]
[1769505171042,0.11142245,88115.0,88101.0,0.10228]
[1769505172745,0.11142245,88115.0,88101.0,0.23286631]
[1769505172944,0.11142245,88115.0,88102.0,0.11922131]
[1769505173140,0.11142245,88119.0,88105.0,0.011365]
[1769505173443,0.11142245,88119.0,88105.0,0.13058631]
[1769505174951,0.11142245,88119.0,88105.0,0.11922131]
[1769505175848,0.11592806,88118.0,88105.0,0.11922131]
[1769505176053,0.11592806,88115.0,88101.0,0.10228]
[1769505178150,0.14638633,88111.0,88101.0,0.10228]
[1769505178353,0.11592806,88110.0,88101.0,0.10228]
[1769505178857,0.11592806,88110.0,88094.0,0.11077851]
[1769505180654,0.11592806,88108.0,88094.0,0.11077851]
[1769505182359,0.011364,88116.0,88098.0,0.11077851]
[1769505182662,0.10228,88117.0,88101.0,0.11077851]
[1769505184252,0.113643,88117.0,88101.0,0.11077851]
[1769505185355,0.11592806,88116.0,88101.0,0.11077851]
[1769505185757,0.011364,88115.0,88101.0,0.11077851]
[1769505186151,0.11592806,88104.0,88090.0,0.10228]
[1769505186352,0.26231439,88100.0,88090.0,0.10228]
[1769505187162,0.11592806,88100.0,88090.0,0.10228]
[1769505187456,0.11592806,88099.0,88090.0,0.10228]
[1769505189764,0.11592806,88099.0,88083.0,0.011368]
[1769505190165,0.11592806,88099.0,88083.0,0.12214651]
[1769505190761,0.11592806,88103.0,88085.0,0.12214551]
[1769505191763,0.11592806,88103.0,88088.0,0.11077851]
[1769505191966,0.10228,88105.0,88088.0,0.11077851]
[1769505192165,0.11592806,88104.0,88088.0,0.11077851]
[1769505193967,0.11592806,88103.0,88082.0,0.11077851]
[1769505194164,0.10228,88105.0,88078.0,0.11077851]
[1769505194165,0.14638633,88091.0,88078.0,0.11077851]
[1769505195174,0.011367,88092.0,88078.0,0.11077851]
[1769505195373,0.11592806,88094.0,88078.0,0.11077851]
[1769505199778,0.011367,88093.0,88078.0,0.11077851]
[1769505200493,0.011367,88090.0,88078.0,0.11077851]
[1769505200672,0.011367,88087.0,88078.0,0.11077851]
[1769505200979,0.011367,88091.0,88078.0,0.11077851]
[1769505203567,0.1248368,88087.0,88075.0,0.10228]
[1769505203872,0.14638633,88090.0,88075.0,0.10228]
[1769505203873,0.1134698,88084.0,88075.0,0.10228]
[1769505204478,0.11261376,88082.0,88066.0,0.01135506]
[1769505204782,0.10228,88092.0,88066.0,0.01135506]
[1769505204783,0.11261376,88079.0,88066.0,0.01135506]
[1769505206481,0.12398176,88079.0,88066.0,0.01135506]
[1769505206982,0.11261376,88079.0,88066.0,0.01135506]
[1769505207776,0.12398176,88079.0,88066.0,0.01135506]
[1769505208484,0.11261376,88076.0,88066.0,0.01135506]
[1769505208681,0.11261376,88076.0,88064.0,0.09242306]
[1769505210887,0.12398276,88076.0,88064.0,0.09242306]
[1769505211086,0.11261376,88076.0,88064.0,0.09242306]
[1769505211383,0.12398176,88080.0,88064.0,0.09242306]
[1769505211771,0.12398176,88080.0,88065.0,0.10986353]
[1769505212885,0.10232,88079.0,88065.0,0.10986353]
[1769505213187,0.21493376,88079.0,88065.0,0.10986353]
[1769505214685,0.011368,88078.0,88065.0,0.10986353]
[1769505215585,0.12398176,88078.0,88065.0,0.10986353]
[1769505216986,0.011368,88078.0,88065.0,0.10986353]
[1769505217494,0.11261376,88077.0,88065.0,0.10986353]
[1769505218081,0.011368,88078.0,88065.0,0.10986353]
[1769505219576,0.10232,88079.0,88065.0,0.10986353]
[1769505219782,0.011368,88084.0,88067.0,0.10986353]
[1769505219984,0.10232,88083.0,88067.0,0.10986353]
[1769505221788,0.011368,88082.0,88067.0,0.10986353]
[1769505223082,0.011368,88080.0,88067.0,0.10986353]
[1769505229891,0.011368,88078.0,88067.0,0.10986353]
[1769505231186,0.011368,88081.0,88067.0,0.10986353]
[1769505235298,0.12280115,88081.0,88067.0,0.10986353]
[1769505235498,0.12280115,88080.0,88065.0,0.11213616]
[1769505235699,0.113688,88083.0,88065.0,0.11213616]
[1769505235899,0.011368,88081.0,88065.0,0.11213616]
[1769505237101,0.11143315,88080.0,88065.0,0.11213616]
[1769505237796,0.10232,88083.0,88065.0,0.11213616]
[1769505238009,0.011368,88080.0,88065.0,0.11213616]
[1769505238202,0.011368,88078.0,88065.0,0.11213616]
[1769505239103,0.011368,88081.0,88065.0,0.11213616]
[1769505239402,0.011368,88079.0,88065.0,0.11213616]
[1769505241805,0.11143315,88081.0,88065.0,0.11213616]
[1769505242410,0.011368,88082.0,88065.0,0.12350616]
[1769505245410,0.011368,88079.0,88065.0,0.11213616]
[1769505246208,0.113688,88082.0,88065.0,0.11213616]
[1769505247108,0.10232,88082.0,88067.0,0.11213616]
[1769505247305,0.10232,88082.0,88067.0,0.02531741]
[1769505247505,0.011368,88079.0,88067.0,0.02531741]
[1769505247809,0.10232,88082.0,88067.0,0.02531741]
[1769505247810,0.11143315,88081.0,88067.0,0.02531741]
[1769505248608,0.011369,88077.0,88067.0,0.02531741]
[1769505249006,0.12280115,88080.0,88067.0,0.02531741]
[1769505249206,0.011368,88078.0,88067.0,0.02531741]
[1769505250307,0.011368,88081.0,88067.0,0.02531741]
[1769505250612,0.10232,88082.0,88067.0,0.02531741]
[1769505251914,0.10232,88082.0,88067.0,0.03668741]
[1769505253023,0.011368,88081.0,88067.0,0.02531741]
[1769505253219,0.10232,88082.0,88067.0,0.02531741]
[1769505255117,0.10232,88083.0,88067.0,0.02531741]
[1769505255321,0.21375315,88083.0,88067.0,0.02531741]
[1769505257522,0.11143315,88082.0,88067.0,0.02531741]
[1769505259018,0.011368,88079.0,88067.0,0.02531741]
[1769505261321,0.01137,88069.0,88060.0,0.10232]
[1769505261528,0.12280215,88072.0,88060.0,0.10232]
[1769505262026,0.12280215,88072.0,88060.0,0.2182918]
[1769505262624,0.12280215,88072.0,88061.0,0.1159718]
[1769505262818,0.011369,88070.0,88061.0,0.1159718]
[1769505263925,0.011369,88073.0,88061.0,0.1159718]
[1769505265229,0.01137,88070.0,88061.0,0.1159718]
[1769505265728,0.01137,88070.0,88060.0,0.10232]
[1769505266428,0.10232,88083.0,88054.0,8.052e-05]
[1769505266429,0.12817402,88067.0,88054.0,8.052e-05]
[1769505267624,0.01137,88065.0,88054.0,8.052e-05]
[1769505267831,0.12817402,88065.0,88054.0,8.052e-05]
[1769505268220,0.11680402,88065.0,88054.0,8.052e-05]
[1769505271525,0.11680402,88069.0,88054.0,0.11281253]
[1769505271725,0.12817402,88066.0,88054.0,0.11281253]
[1769505272131,0.12817402,88066.0,88054.0,8.052e-05]
[1769505274935,0.01137,88064.0,88054.0,8.052e-05]
[1769505275232,0.11680402,88066.0,88054.0,8.052e-05]
[1769505277036,0.01137,88065.0,88054.0,8.052e-05]
[1769505277238,0.11680402,88064.0,88054.0,8.052e-05]
[1769505277439,0.11680402,88060.0,88054.0,8.052e-05]
[1769505279734,0.12817502,88060.0,88054.0,8.052e-05]
[1769505279934,0.11680402,88060.0,88054.0,8.052e-05]
[1769505280442,0.11680402,88065.0,88054.0,8.052e-05]
[1769505280741,0.12817402,88064.0,88054.0,8.052e-05]
[1769505281342,0.11680402,88064.0,88054.0,8.052e-05]
[1769505281543,0.12817402,88068.0,88054.0,0.11281253]
[1769505281845,0.01137,88066.0,88054.0,0.11281253]
[1769505283954,0.11680402,88063.0,88054.0,8.052e-05]
[1769505284746,0.11680402,88067.0,88054.0,8.052e-05]
[1769505285653,0.11680402,88067.0,88054.0,0.01145152]
[1769505289254,0.12817402,88067.0,88054.0,8.052e-05]
[1769505292164,0.11680402,88067.0,88054.0,8.052e-05]
[1769505292564,0.11680402,88067.0,88055.0,0.011371]
[1769505292767,0.11680402,88067.0,88054.0,8.052e-05]
[1769505292958,0.15798033,88070.0,88054.0,0.12418353]
[1769505293763,0.11680402,88069.0,88054.0,0.12418353]
[1769505295370,0.11680402,88069.0,88054.0,0.11281253]
[1769505298265,0.12666539,88068.0,88054.0,0.11281253]
[1769505299175,0.11529539,88068.0,88055.0,0.12290246]
[1769505299471,0.11529539,88068.0,88055.0,0.11153146]
[1769505299874,0.14661033,88070.0,88055.0,0.11153146]
[1769505300070,0.26190572,88070.0,88055.0,0.11153146]
[1769505300275,0.11529539,88069.0,88055.0,0.11153146]
[1769505300479,0.12666439,88073.0,88056.0,0.12290246]
[1769505301175,0.11529539,88069.0,88056.0,0.11153146]
[1769505301375,0.11529539,88074.0,88056.0,0.12290246]
[1769505301575,0.011369,88073.0,88056.0,0.11153146]
[1769505301778,0.22584661,88082.0,88064.0,0.11153146]
[1769505301972,0.22584661,88082.0,88060.0,0.14661033]
[1769505301973,0.11529539,88084.0,88066.0,0.11153146]
[1769505302276,0.11529539,88084.0,88068.0,0.11153146]
[1769505302477,0.14661033,88080.0,88068.0,0.11153146]
[1769505303079,0.11529539,88084.0,88068.0,0.11153146]
[1769505303578,0.11529539,88079.0,88054.0,0.11161198]
[1769505303779,0.14661033,88080.0,88056.0,0.11153146]
[1769505303964,0.14661033,88080.0,88060.0,0.14661033]
[1769505304163,0.11529539,88082.0,88061.0,0.11153146]
[1769505304365,0.11529539,88082.0,88061.0,0.1229014]
[1769505304779,0.14661033,88080.0,88066.0,0.11153146]
[1769505304983,0.11529539,88082.0,88068.0,0.11153146]
[1769505306463,0.11529539,88082.0,88069.0,0.12290146]
[1769505306668,0.12666239,88087.0,88069.0,0.1342714]
[1769505306870,0.12666239,88087.0,88069.0,0.1229014]
[1769505308577,0.12666239,88087.0,88069.0,0.11153146]
[1769505310181,0.12666239,88087.0,88071.0,0.11153146]
[1769505313286,0.11529539,88084.0,88069.0,0.01136994]
[1769505313489,0.11529539,88084.0,88069.0,0.1229014]
[1769505315085,0.11529539,88084.0,88071.0,0.11153146]
[1769505315282,0.011367,88087.0,88071.0,0.11153146]
[1769505315486,0.11529539,88088.0,88073.0,0.11153146]
[1769505316886,0.12666239,88087.0,88073.0,0.11153146]
[1769505320189,0.12666239,88087.0,88072.0,0.01136994]
[1769505321488,0.12666339,88085.0,88072.0,0.01136994]
[1769505322890,0.11529539,88085.0,88072.0,0.01136994]
[1769505324094,0.11529539,88085.0,88072.0,0.12434986]
[1769505324695,0.1303422,88090.0,88072.0,0.12434986]
[1769505324896,0.1189752,88094.0,88077.0,0.11297992]
[1769505325086,0.1189752,88094.0,88079.0,0.11297992]
[1769505326094,0.1189752,88094.0,88080.0,0.01136994]
[1769505326296,0.011366,88095.0,88080.0,0.27096019]
[1769505326496,0.011366,88095.0,88080.0,0.12434986]
[1769505327690,0.1189752,88098.0,88080.0,8.6e-07]
[1769505327891,0.1189752,88070.0,88050.0,0.011372]
[1769505328195,0.1189752,88065.0,88054.0,0.10232]
[1769505328899,8.006e-05,88064.0,88054.0,0.10232]
[1769505329300,0.11905526,88064.0,88054.0,0.10232]
[1769505329501,0.1189752,88063.0,88046.0,0.01135763]
[1769505329803,0.1303452,88063.0,88046.0,0.01135763]
[1769505330485,0.1189752,88063.0,88046.0,0.01135763]
[1769505330697,0.1189752,88063.0,88046.0,0.12433755]
[1769505340206,0.1303452,88063.0,88046.0,0.12433755]
[1769505340601,8.006e-05,88064.0,88046.0,0.01135763]
[1769505340602,0.1189752,88059.0,88046.0,0.01135763]
[1769505340905,0.1189752,88054.0,88046.0,0.01135763]
[1769505341703,0.1189752,88054.0,88046.0,6.3e-07]
[1769505342198,0.1303472,88051.0,88046.0,6.3e-07]
[1769505343203,0.1189752,88051.0,88046.0,6.3e-07]
[1769505344205,0.10232,88059.0,88033.0,0.00795161]
[1769505344206,0.1189752,88047.0,88033.0,0.00795161]
[1769505344404,0.1189752,88045.0,88033.0,0.00795161]
[1769505346412,0.1189752,88038.0,88026.0,0.01136022]
[1769505346613,0.1189752,88036.0,88016.0,0.1244472]
[1769505346918,8.052e-05,88035.0,88016.0,0.1244472]
[1769505347111,0.1189752,88034.0,88016.0,0.1244472]
[1769505347611,0.1189752,88034.0,88016.0,0.01146728]
[1769505348811,0.1189752,88034.0,88019.0,0.011376]
[1769505349011,0.1189752,88034.0,88021.0,0.011376]
[1769505349314,0.10232,88042.0,88024.0,0.12435492]
[1769505351202,0.10232,88042.0,88024.0,0.11297992]
[1769505351408,0.1189752,88041.0,88024.0,0.11297992]
[1769505351608,0.1189752,88041.0,88025.0,0.011375]
[1769505352213,0.1189752,88041.0,88024.0,0.11297992]
[1769505353414,0.1303482,88041.0,88024.0,0.11297992]
[1769505354216,0.1189752,88041.0,88024.0,0.11297992]
[1769505355118,0.1189752,88041.0,88025.0,0.011375]
[1769505355418,0.1189752,88041.0,88025.0,0.12274821]
[1769505358011,0.1189752,88041.0,88025.0,0.11137321]
[1769505358216,0.1189752,88041.0,88027.0,0.11137321]
[1769505359918,0.11319676,88039.0,88027.0,0.11137321]
[1769505362414,0.22584661,88054.0,88035.0,0.11137321]
[1769505362415,0.11319676,88049.0,88035.0,0.11137321]
[1769505363119,0.11319676,88049.0,88031.0,0.12274721]
[1769505363622,0.12456876,88049.0,88031.0,0.12274721]
[1769505364109,0.011373,88046.0,88031.0,0.11137321]
[1769505364313,0.12456976,88046.0,88031.0,0.11137321]
[1769505364918,0.11319676,88046.0,88031.0,0.11137321]
[1769505365225,0.11319676,88046.0,88032.0,0.011374]
[1769505365421,0.33904337,88050.0,88031.0,0.11137321]
[1769505365627,0.33904337,88055.0,88042.0,0.11137321]
[1769505365929,0.22584661,88060.0,88042.0,0.11137321]
[1769505366325,0.22584661,88059.0,88042.0,0.11137321]
[1769505367421,0.22584661,88059.0,88047.0,0.11137321]
[1769505367622,0.22584661,88060.0,88047.0,0.11137321]
[1769505368422,0.22584661,88061.0,88049.0,0.11137321]
[1769505368724,0.11319676,88068.0,88055.0,0.12274421]
[1769505368918,0.22577314,88071.0,88058.0,0.12274421]
[1769505369123,0.12114476,88073.0,88058.0,0.12274421]
[1769505369426,0.007948,88073.0,88061.0,0.11137321]
[1769505369625,0.007948,88073.0,88060.0,0.011371]
[1769505369626,0.11319676,88083.0,88065.0,0.12274321]
[1769505369819,0.12456476,88082.0,88065.0,0.12274321]
[1769505370222,0.12456476,88082.0,88065.0,0.11137321]
[1769505371429,0.11319676,88082.0,88065.0,0.11137321]
[1769505372928,0.11319676,88086.0,88071.0,0.11137321]
[1769505373626,0.11319676,88086.0,88071.0,0.21373321]
[1769505373827,0.11319676,88086.0,88072.0,0.11137321]
[1769505374432,0.11319676,88086.0,88072.0,0.12274221]
[1769505375031,0.011,88087.0,88072.0,0.12274221]
[1769505375731,0.011,88087.0,88076.0,0.11137321]
[1769505379540,0.10236,88094.0,88076.0,0.12274221]
[1769505380136,0.10236,88094.0,88076.0,0.11137321]
[1769505380336,0.11319676,88093.0,88076.0,0.11137321]
[1769505381639,0.11319676,88092.0,88076.0,0.11137321]
[1769505382041,0.12441916,88090.0,88076.0,0.11137321]
[1769505386937,0.11305216,88090.0,88076.0,0.11137321]
[1769505387141,0.12351127,88093.0,88076.0,0.11137321]
[1769505387538,0.11214427,88093.0,88076.0,0.11137321]
[1769505388448,0.11214427,88093.0,88078.0,0.11754448]
[1769505389453,0.11214427,88099.0,88080.0,0.11754448]
[1769505389641,0.11214427,88099.0,88082.0,0.11754448]
[1769505389843,0.21584606,88106.0,88090.0,0.11754448]
[1769505390045,0.10232,88106.0,88090.0,0.11754448]
[1769505390548,0.21446427,88106.0,88090.0,0.11754448]
[1769505390747,0.21446427,88106.0,88091.0,0.21986448]
[1769505390944,0.11214427,88105.0,88091.0,0.21986448]
[1769505391152,0.11214427,88111.0,88096.0,0.11754448]
[1769505392241,0.11214427,88111.0,88096.0,0.12891048]
[1769505392441,0.00794439,88113.0,88091.0,0.10232]
[1769505392442,0.00794439,88113.0,88103.0,0.11754448]
[1769505392640,0.00794439,88113.0,88104.0,0.11754448]
[1769505393641,0.011363,88124.0,88106.0,0.11754448]
[1769505393946,0.11214427,88123.0,88106.0,0.11754448]
[1769505394243,0.11214427,88121.0,88106.0,0.11754448]
[1769505394445,0.11214427,88119.0,88106.0,0.11754448]
[1769505395138,0.011364,88116.0,88103.0,0.10232]
[1769505395352,0.11214427,88107.0,88100.0,0.10232]
[1769505397148,0.11214427,88107.0,88091.0,0.11754448]
[1769505397350,0.011365,88104.0,88092.0,0.10228]
[1769505397549,0.12350927,88107.0,88092.0,0.10228]
[1769505398043,0.21648887,88110.0,88093.0,0.11754448]
[1769505398250,0.05865559,88109.0,88093.0,0.11754448]
[1769505398649,0.05865559,88109.0,88093.0,0.12891048]
[1769505399656,0.05865559,88109.0,88095.0,0.12891048]
[1769505399850,0.05417787,88114.0,88095.0,0.12891048]
[1769505400054,0.05417787,88114.0,88098.0,0.11754448]
[1769505400254,0.06554187,88114.0,88098.0,0.11754448]
[1769505402054,0.05417787,88114.0,88098.0,0.11754448]
[1769505402547,0.011364,88113.0,88098.0,0.11754448]
[1769505402753,0.06356579,88113.0,88098.0,0.11754448]
[1769505402954,0.011364,88111.0,88098.0,0.11754448]
[1769505403145,0.05220179,88113.0,88098.0,0.11754448]
[1769505403341,0.06356579,88112.0,88098.0,0.11754448]
[1769505403942,0.14646928,88110.0,88098.0,0.11754448]
[1769505404659,0.06356579,88112.0,88098.0,0.11754448]
[1769505405855,0.05220179,88112.0,88098.0,0.11754448]
[1769505407157,0.011364,88111.0,88098.0,0.11754448]
[1769505407359,0.06490304,88111.0,88098.0,0.11754448]
[1769505407552,0.05353904,88111.0,88098.0,0.11754448]
[1769505408953,0.011364,88114.0,88098.0,0.11754448]
[1769505409559,0.06864143,88115.0,88098.0,0.11754448]
[1769505410053,0.14646928,88110.0,88098.0,0.11754448]
[1769505410260,0.011365,88107.0,88097.0,0.10228]
[1769505410454,0.12351027,88100.0,88081.0,0.011368]
[1769505410656,0.11214427,88099.0,88085.0,0.011367]
[1769505410854,0.11214427,88099.0,88087.0,0.011367]
[1769505411159,0.11214427,88105.0,88089.0,0.011367]
[1769505411855,0.11214427,88105.0,88088.0,0.011367]
[1769505412159,0.11214427,88105.0,88089.0,0.11754448]
[1769505412751,0.11214427,88105.0,88090.0,0.011367]
[1769505412952,0.11214427,88105.0,88091.0,0.11754448]
[1769505413159,0.12350827,88109.0,88091.0,0.11754448]
[1769505413759,0.11214427,88109.0,88091.0,0.11754448]
[1769505414163,0.11433905,88107.0,88091.0,0.11754448]
[1769505416164,0.11433905,88107.0,88091.0,0.12891148]
[1769505416364,0.11433905,88107.0,88094.0,0.11115175]
[1769505416565,0.11433905,88107.0,88094.0,0.01981626]
[1769505416770,0.11433905,88107.0,88095.0,0.011366]
[1769505417060,0.011364,88114.0,88095.0,0.011366]
[1769505417061,0.11433905,88111.0,88095.0,0.011366]
[1769505417364,0.11433905,88111.0,88099.0,0.011366]
[1769505417765,0.11433905,88111.0,88096.0,0.011366]
[1769505417966,0.33943302,88115.0,88096.0,0.011366]
[1769505418161,0.33943302,88115.0,88098.0,0.011366]
[1769505418362,0.33943302,88115.0,88100.0,0.14646928]
[1769505418563,0.011364,88114.0,88101.0,0.11115175]
[1769505418763,0.11433905,88114.0,88101.0,0.11115175]
[1769505419167,0.22509397,88117.0,88101.0,0.11115175]
[1769505419369,0.22509397,88118.0,88105.0,0.11115175]
[1769505419568,0.22509397,88119.0,88105.0,0.11115175]
[1769505419868,0.22509397,88119.0,88107.0,0.11115175]
[1769505420170,0.11433905,88122.0,88107.0,0.11115175]
[1769505420171,0.22509397,88120.0,88107.0,0.11115175]
[1769505420368,0.22509397,88120.0,88108.0,0.11115175]
[1769505420669,0.22509397,88117.0,88108.0,0.02161133]
[1769505420864,0.22509397,88118.0,88108.0,0.02161133]
[1769505423668,0.22509397,88119.0,88108.0,0.02161133]
[1769505424261,0.22509397,88125.0,88111.0,0.11115175]
[1769505424468,0.11433905,88126.0,88111.0,0.12251575]
[1769505425581,0.26080833,88130.0,88111.0,0.12251575]
[1769505425973,0.12533905,88127.0,88111.0,0.12251575]
[1769505426165,0.12533905,88127.0,88114.0,0.011364]
[1769505426371,0.12533905,88127.0,88114.0,0.12251575]
[1769505426570,0.05795164,88134.0,88114.0,0.12251575]
[1769505426571,0.27168461,88134.0,88119.0,0.11115175]
[1769505426770,0.05795164,88134.0,88119.0,0.02337241]
[1769505427270,0.11433905,88129.0,88114.0,0.10228]
[1769505427671,0.15783128,88130.0,88114.0,0.10228]
[1769505428073,0.27217033,88130.0,88114.0,0.10228]
[1769505428773,0.27217033,88130.0,88115.0,0.11115175]
[1769505429170,0.26080833,88130.0,88115.0,0.11115175]
[1769505430869,0.27217033,88130.0,88115.0,0.11115175]
[1769505431069,0.011362,88130.0,88115.0,0.11115175]
[1769505431264,0.05795164,88134.0,88115.0,0.11115175]
[1769505431864,0.17229069,88134.0,88115.0,0.11115175]
[1769505432071,0.11433905,88133.0,88115.0,0.11115175]
[1769505432377,0.11433905,88133.0,88117.0,0.11115175]
[1769505432572,0.11433905,88144.0,88126.0,0.011362]
[1769505432777,0.01136,88143.0,88128.0,0.11115175]
[1769505433084,0.11433905,88136.0,88124.0,0.10228]
[1769505433376,0.11433905,88136.0,88123.0,0.39808]
[1769505433377,0.11433905,88132.0,88121.0,0.10228]
[1769505433875,0.11433905,88130.0,88121.0,0.10228]
[1769505435476,0.011362,88129.0,88121.0,0.10228]
[1769505435675,0.11433905,88130.0,88121.0,0.10228]
[1769505437281,0.12570105,88130.0,88121.0,0.10228]
[1769505437981,0.011362,88128.0,88121.0,0.10228]
[1769505438278,0.12570105,88126.0,88117.0,0.10228]
[1769505438680,0.11433905,88126.0,88117.0,0.10228]
[1769505439982,0.12570105,88126.0,88117.0,0.10228]
[1769505440183,0.011363,88124.0,88117.0,0.10228]
[1769505440587,0.12570205,88124.0,88117.0,0.10228]
[1769505440776,0.11433905,88117.0,88101.0,0.11115175]
[1769505440985,0.11433905,88108.0,88091.0,0.21343175]
[1769505441886,0.11433905,88108.0,88092.0,0.11883144]
[1769505444185,0.10834527,88106.0,88092.0,0.11883144]
[1769505447190,0.11971027,88105.0,88092.0,0.11883144]
[1769505447391,0.10834527,88101.0,88091.0,0.10228]
[1769505453894,0.10834527,88098.0,88091.0,0.10228]